bitfinex/quotes_ETHUSD_20250220
["timestamp","ask_amount","ask_price","bid_price","bid_amount"]
[1740084468224,0.0075,2752.3,2751.9,3.63373]
[1740084468383,0.0075,2752.3,2751.6,1.0143]
[1740084468589,0.0075,2752.3,2751.9,3.63383]
[1740084468810,3.0075,2752.3,2751.9,3.63383]
[1740084469013,3.63352,2752.2,2751.7,3.63407]
[1740084469218,0.0075,2751.9,2751.6,0.7513]
[1740084469400,0.0075,2751.9,2751.7,0.263]
[1740084470024,3.64141,2751.9,2751.7,0.263]
[1740084470220,7.27534,2751.9,2751.7,0.263]
[1740084470519,3.64141,2751.9,2751.7,0.263]
[1740084470723,3.64141,2751.9,2751.6,0.263]
[1740084470724,0.814636,2751.9,2751.6,0.263]
[1740084470923,4.42304,2751.6,2751.5,0.0144345]
[1740084471219,4.43804,2751.6,2751.5,0.0144345]
[1740084473190,9.79804,2751.6,2751.5,0.0144345]
[1740084475623,12.78044,2751.6,2751.5,0.0144345]
[1740084475930,14.16034143,2751.6,2751.5,0.0144345]
[1740084476804,14.16034143,2751.6,2751.5,4.5e-06]
[1740084477142,7.4091,2751.1,2751.0,0.825]
[1740084477442,10.80778008,2751.1,2751.0,0.825]
[1740084477625,11.91227408,2751.1,2751.0,0.825]
[1740084478187,17.27227408,2751.1,2751.0,0.825]
[1740084481731,13.873594,2751.1,2751.0,0.825]
[1740084482118,9.1267,2751.1,2751.0,0.825]
[1740084482294,5.3675,2751.1,2751.0,0.825]
[1740084483100,6.1329,2751.6,2751.0,1.6123]
[1740084483429,6.1329,2751.6,2751.1,0.263]
[1740084483430,5.36,2751.6,2751.1,0.263]
[1740084483627,8.99427,2751.6,2751.1,3.89783]
[1740084483831,3.63441,2751.5,2751.1,0.263]
[1740084484008,0.0075,2751.4,2751.1,0.263]
[1740084484205,3.63472,2751.3,2751.1,0.263]
[1740084484527,5.36,2751.6,2751.1,0.45053]
[1740084484830,5.36,2751.6,2751.2,3.63468]
[1740084485227,5.36,2751.6,2751.1,0.45053]
[1740084485436,0.0075,2751.8,2751.5,0.8247]
[1740084485802,3.64149,2751.8,2751.5,0.8247]
[1740084486111,3.63432,2751.6,2751.2,0.7805]
[1740084486318,4.20718008,2751.7,2751.0,0.825]
[1740084486521,3.64214,2751.3,2751.0,0.825]
[1740084486721,3.64237,2751.2,2751.1,0.263]
[1740084487039,3.6424,2751.1,2751.0,0.825]
[1740084487227,4.459227,2751.1,2751.0,0.825]
[1740084487423,0.0075,2751.1,2751.0,0.825]
[1740084489022,7.03326008,2751.4,2751.0,0.825]
[1740084489199,3.0,2751.6,2751.0,1.6141]
[1740084489412,3.63466,2751.3,2751.0,0.825]
[1740084489616,0.0075,2751.2,2751.0,0.825]
[1740084489910,0.0075,2751.1,2751.0,0.825]
[1740084490097,0.0075,2751.3,2751.0,0.825]
[1740084490703,3.64221,2751.3,2751.0,0.825]
[1740084491941,0.0075,2751.3,2751.0,0.825]
[1740084492541,6.63431,2751.6,2751.0,0.825]
[1740084492542,0.0075,2751.6,2751.1,3.6349]
[1740084492746,0.0075,2751.6,2751.3,0.769]
[1740084492932,0.0075,2751.6,2751.3,4.4036]
[1740084493132,0.0075,2751.6,2751.4,3.63451]
[1740084493329,0.0075,2751.9,2751.4,0.440351]
[1740084493534,0.0075,2751.9,2751.3,0.769]
[1740084493736,3.0075,2751.9,2751.5,7.26859]
[1740084493937,3.0075,2751.9,2751.6,0.263]
[1740084494154,6.64141,2751.9,2751.6,0.263]
[1740084494335,3.0075,2751.9,2751.6,0.263]
[1740084494655,3.0075,2751.9,2751.7,0.769]
[1740084496580,5.36,2752.0,2751.7,0.769]
[1740084496877,0.0075,2752.3,2751.9,3.63385]
[1740084497173,0.0075,2752.3,2751.8,3.63398]
[1740084497354,3.63352,2752.2,2751.7,0.769]
[1740084498023,0.0075,2752.0,2751.7,0.769]
[1740084498553,0.0075,2752.1,2751.7,0.769]
[1740084498781,3.63378,2752.0,2751.6,0.263]
[1740084499674,0.0075,2752.1,2751.6,0.263]
[1740084499872,3.6411,2752.1,2751.6,3.89724]
[1740084500031,0.0075,2752.2,2751.8,3.63391]
[1740084501253,4.750563,2752.2,2751.7,3.63411]
[1740084501425,0.0075,2752.2,2751.8,3.63398]
[1740084501622,3.64096,2752.2,2751.7,3.63411]
[1740084501823,3.64096,2752.2,2751.7,3.63404]
[1740084502136,3.63365,2752.1,2751.6,3.63417]
[1740084502336,3.63385,2751.9,2751.5,0.7988]
[1740084502535,3.63385,2751.9,2751.6,0.263]
[1740084502741,3.64131,2752.0,2751.6,0.263]
[1740084503264,0.0075,2751.8,2751.5,0.7988]
[1740084503450,3.63418,2751.7,2751.4,0.1638]
[1740084504333,3.64149,2751.8,2751.4,0.1638]
[1740084504728,3.63418,2751.7,2751.4,0.1638]
[1740084505156,3.63424,2751.6,2751.4,0.1638]
[1740084505356,0.015,2751.8,2751.3,0.7671]
[1740084505541,3.63452,2751.4,2751.2,0.263]
[1740084505744,3.63472,2751.3,2751.0,1.6335]
[1740084505951,3.63472,2751.3,2751.0,0.825]
[1740084506162,3.64201,2751.4,2751.0,0.825]
[1740084507562,3.64201,2751.4,2751.0,4.46003]
[1740084507769,0.0075,2751.5,2751.1,4.40079]
[1740084508179,12.62867,2751.6,2751.1,4.40079]
[1740084508382,3.63445,2751.5,2751.1,0.766]
[1740084508561,3.63457,2751.4,2751.1,0.766]
[1740084508761,3.63483,2751.2,2751.0,0.825]
[1740084508964,0.0075,2751.2,2751.0,0.825]
[1740084509351,0.0075,2751.3,2751.0,0.825]
[1740084509551,0.0075,2751.3,2751.0,4.45999]
[1740084509976,0.0075,2751.4,2751.0,4.45999]
[1740084511285,3.64936,2751.6,2751.1,3.63483]
[1740084511653,4.455985,2751.6,2751.1,3.63483]
[1740084511992,3.64935,2751.6,2751.1,3.63483]
[1740084512202,0.015,2751.7,2751.2,0.7979]
[1740084512419,0.0075,2751.5,2751.2,0.7979]
[1740084513101,7.39575,2751.8,2751.2,0.7979]
[1740084513102,3.7617,2751.8,2751.2,0.7979]
[1740084513413,0.0075,2751.7,2751.4,3.63443]
[1740084514394,3.64109,2752.1,2751.6,0.7787]
[1740084514395,0.0075,2752.1,2751.6,0.7787]
[1740084514890,3.0075,2752.1,2751.6,4.41288]
[1740084515094,3.0075,2752.1,2751.7,3.63402]
[1740084515631,0.0075,2752.1,2751.7,3.63411]
[1740084516613,0.0075,2752.1,2751.7,7.26815]
[1740084516812,0.0075,2752.1,2751.7,3.63398]
[1740084518700,0.0075,2752.1,2751.7,3.89698]
[1740084518899,3.63372,2752.0,2751.7,0.263]
[1740084519101,3.64109,2752.1,2751.7,0.263]
[1740084519906,3.64109,2752.1,2751.2,0.73825624]
[1740084519907,3.63395,2751.9,2751.4,3.63445]
[1740084520099,3.63395,2751.9,2751.5,0.263]
[1740084520299,3.63395,2751.9,2751.5,3.89737]
[1740084520500,3.64178,2751.6,2751.2,0.73825624]
[1740084520730,0.0075,2751.6,2751.2,0.8242]
[1740084520926,0.0075,2751.6,2751.2,4.45896]
[1740084523417,0.0075,2751.6,2751.3,3.63462]
[1740084523811,0.0075,2751.6,2751.2,4.45894]
[1740084524014,3.64181,2751.6,2751.2,0.8242]
[1740084524516,3.64181,2751.6,2751.1,3.63489]
[1740084524713,3.63445,2751.5,2751.0,6.19404651]
[1740084524914,3.63445,2751.5,2751.0,6.91397016]
[1740084525118,3.64207,2751.4,2751.1,0.263]
[1740084525318,0.8208,2751.3,2751.1,0.263]
[1740084525907,3.64235,2751.2,2751.0,0.825]
[1740084526234,3.6424,2751.1,2751.0,0.825]
[1740084526926,7.438,2751.1,2751.0,0.825]
[1740084527108,12.56204508,2751.1,2751.0,0.825]
[1740084528503,9.163365,2751.1,2751.0,0.825]
[1740084530214,5.528465,2751.1,2751.0,0.825]
[1740084530420,3.015,2751.1,2751.0,0.825]
[1740084531138,5.36,2751.3,2751.1,3.6349]
[1740084531445,5.36,2751.3,2751.0,0.825]
[1740084531645,3.64228,2751.2,2751.0,0.825]
[1740084531850,0.0075,2751.2,2751.0,0.825]
[1740084532339,3.6423,2751.2,2751.0,0.825]
[1740084532646,0.0075,2751.2,2751.0,0.825]
[1740084536823,3.64229,2751.2,2751.0,0.825]
[1740084537024,4.905975,2751.2,2751.0,0.825]
[1740084537219,1.271185,2751.2,2751.0,0.825]
[1740084537451,4.905985,2751.2,2751.0,0.825]
[1740084538856,3.6423,2751.2,2751.0,0.825]
[1740084539055,4.3963,2751.2,2751.0,0.825]
[1740084539955,6.6499,2751.1,2751.0,0.825]
[1740084540138,10.04858008,2751.1,2751.0,0.825]
[1740084540663,6.6424,2751.1,2751.0,0.825]
[1740084540834,6.6499,2751.1,2751.0,0.825]
[1740084541030,3.0075,2751.1,2751.0,0.825]
[1740084541236,0.0075,2751.1,2751.0,0.825]
[1740084543437,5.36,2751.3,2751.0,0.825]
[1740084543759,0.0075,2751.2,2751.0,0.825]
[1740084544546,6.64969,2751.3,2751.0,0.825]
[1740084544751,3.0075,2751.3,2751.0,0.825]
[1740084545060,0.0075,2751.9,2751.2,0.7848]
[1740084545225,3.64143,2751.9,2751.4,4.4193]
[1740084545420,0.0075,2751.6,2751.1,0.7848]
[1740084545669,0.015,2751.6,2751.1,1.0478]
[1740084546023,0.015,2751.6,2751.1,1.6699874]
[1740084546225,3.64175,2751.6,2751.1,4.68262]
[1740084546432,3.0,2751.7,2751.3,3.63459]
[1740084546631,0.0075,2752.0,2751.2,0.8317]
[1740084546838,0.0075,2751.8,2751.2,0.8317]
[1740084547061,3.63442,2751.5,2751.1,0.263]
[1740084547260,0.0075,2751.4,2751.0,1.6567]
[1740084547472,3.63464,2751.3,2751.1,0.264]
[1740084547857,0.0075,2751.4,2751.1,0.264]
[1740084548044,3.64203,2751.4,2751.1,0.264]
[1740084548553,3.64203,2751.4,2751.0,5.55572]
[1740084548760,0.0075,2751.4,2751.0,5.55572]
[1740084548964,0.0075,2751.5,2751.0,1.88985813]
[1740084549260,5.36,2751.6,2751.4,3.63443]
[1740084549460,5.36,2751.6,2751.4,3.6345]
[1740084549833,5.36,2751.6,2751.3,3.63454]
[1740084550268,5.36,2751.6,2751.4,3.63449]
[1740084550769,5.36,2751.6,2751.5,3.63438]
[1740084551062,5.36,2751.6,2751.5,4.45888]
[1740084552560,3.0075,2752.0,2751.5,4.45888]
[1740084552872,3.0,2752.0,2751.6,3.63418]
[1740084554197,3.0,2752.0,2751.6,3.63415]
[1740084554413,0.0075,2751.9,2751.5,0.8245]
[1740084554547,0.7678,2751.7,2751.3,0.8115]
[1740084554905,4.40192,2751.7,2751.3,4.44613]
[1740084555574,3.64136,2751.9,2751.4,3.63443]
[1740084557256,0.0075,2751.7,2751.3,4.44606]
[1740084557453,0.0075,2751.7,2751.3,8.0806]
[1740084557651,0.0075,2751.7,2751.4,3.63447]
[1740084557857,0.0075,2751.8,2751.4,3.63447]
[1740084558394,0.0075,2751.8,2751.4,3.63444]
[1740084559101,0.0075,2751.8,2751.5,3.63434]
[1740084559758,0.0075,2751.9,2751.5,3.63434]
[1740084559953,3.0,2752.0,2751.8,4.38507]
[1740084560167,3.0075,2752.0,2751.9,3.63385]
[1740084560371,5.36,2752.1,2751.9,3.63385]
[1740084560655,5.36,2752.1,2751.9,3.63378]
[1740084561181,3.0075,2752.3,2751.9,3.89678]
[1740084561386,4.647291,2752.3,2751.9,3.89678]
[1740084561558,4.647291,2752.3,2751.9,3.89677]
[1740084561757,4.647291,2752.3,2751.9,7.53055]
[1740084561976,4.647291,2752.3,2751.9,3.89677]
[1740084562859,4.647291,2752.3,2751.9,7.53055]
[1740084563059,4.647291,2752.3,2751.9,3.89677]
[1740084563263,4.647291,2752.3,2751.9,7.53055]
[1740084563597,4.647291,2752.3,2751.9,3.89677]
[1740084564893,4.647291,2752.3,2751.9,0.263]
[1740084565318,4.47172,2752.0,2751.9,0.263]
[1740084565810,4.46422,2752.0,2751.9,0.263]
[1740084566008,4.47172,2752.0,2751.9,0.263]
[1740084566301,4.83914118,2752.2,2751.9,0.263]
[1740084566615,0.8305,2752.1,2751.5,0.263]
[1740084566910,0.0075,2752.2,2751.9,3.63377]
[1740084567205,0.0075,2752.2,2751.9,3.63375]
[1740084567416,0.0075,2752.2,2751.9,7.26752]
[1740084567711,0.0075,2752.2,2751.9,0.7634]
[1740084568009,0.0075,2751.8,2751.5,1.0264]
[1740084568610,0.0075,2751.8,2751.5,0.7634]
[1740084568755,0.0075,2751.8,2751.4,4.61851306]
[1740084570505,3.64123,2752.0,2751.4,4.61851306]
[1740084570506,4.40113,2752.3,2751.5,0.8123]
[1740084570713,3.0075,2752.2,2751.8,3.63391]
[1740084570860,0.0075,2752.2,2752.0,3.63366]
[1740084571068,0.0075,2752.2,2752.0,4.44596]
[1740084571409,0.0075,2752.2,2752.0,0.8123]
[1740084572473,0.0075,2752.2,2752.0,4.44598]
[1740084573066,5.36,2752.4,2752.2,3.63338]
[1740084573210,3.64795,2752.6,2752.1,3.6335]
[1740084573411,0.0075,2752.4,2752.1,3.6335]
[1740084573615,0.0075,2752.9,2752.6,3.63286]
[1740084573914,0.0075,2752.9,2752.7,3.63271]
[1740084574149,8.99244,2753.0,2752.5,3.63299]
[1740084574316,8.99244,2753.0,2752.3,4.41866]
[1740084574515,5.36,2753.0,2752.6,3.63286]
[1740084574966,5.36,2753.0,2752.7,3.63273]
[1740084575831,5.36,2753.0,2752.6,3.63286]
[1740084576032,5.36,2753.0,2752.6,7.26571]
[1740084576662,5.36,2753.0,2752.6,3.63285]
[1740084576848,5.36,2753.0,2752.6,4.4062616]
[1740084577262,5.36,2753.0,2752.6,3.63285]
[1740084577614,5.36,2753.0,2752.5,0.263]
[1740084577776,0.0075,2752.9,2752.5,0.263]
[1740084578098,0.0075,2752.9,2752.6,3.63292]
[1740084578395,0.0075,2752.9,2752.5,0.263]
[1740084578554,0.0075,2752.9,2752.5,4.43559604]
[1740084578755,0.0075,2752.9,2752.5,0.80254604]
[1740084578965,3.64006,2752.9,2752.5,0.80254604]
[1740084579281,3.63256,2752.9,2752.5,0.80254604]
[1740084579443,3.63276,2752.8,2752.5,0.263]
[1740084579650,3.6324,2753.0,2752.5,3.89598]
[1740084579849,0.0075,2752.9,2752.5,3.89598]
[1740084580507,0.0075,2752.9,2752.5,0.263]
[1740084580807,0.0075,2752.9,2752.5,3.89597]
[1740084580949,0.0075,2752.9,2752.6,4.09387504]
[1740084581148,0.802,2753.3,2752.7,0.7706]
[1740084581372,0.0075,2753.2,2752.8,3.63256]
[1740084581583,3.63215,2753.2,2752.8,3.63256]
[1740084581801,0.0075,2753.1,2752.7,0.7706]
[1740084582005,0.0075,2753.1,2752.7,1.237251]
[1740084582354,0.0075,2753.1,2752.7,4.870031]
[1740084582768,4.40395,2753.5,2752.7,1.237251]
[1740084582968,0.0075,2753.4,2752.7,1.237251]
[1740084583172,0.0075,2753.4,2753.0,3.63239]
[1740084583486,0.7647,2753.5,2753.1,3.63226]
[1740084583792,0.0075,2753.4,2753.0,4.358873]
[1740084584196,0.0075,2753.4,2753.1,3.63213]
[1740084584396,2.44041312,2753.7,2753.3,3.63193]
[1740084584577,0.0075,2753.6,2753.3,3.63193]
[1740084584978,0.0075,2753.6,2753.2,4.44033]
[1740084585173,2.44041312,2753.7,2753.2,1.58828226]
[1740084585385,0.0075,2753.7,2753.4,3.63176]
[1740084585601,0.0075,2753.7,2753.5,3.63167]
[1740084585799,0.0075,2753.7,2753.2,5.22032226]
[1740084585996,0.0512,2753.8,2753.4,3.63185]
[1740084586163,0.0512,2753.8,2753.4,4.41783323]
[1740084586362,0.0512,2753.8,2753.7,4.39987]
[1740084587283,0.0512,2753.8,2753.7,0.7684]
[1740084587482,0.0512,2753.8,2753.5,3.63162]
[1740084587695,0.0512,2753.8,2753.6,3.63149]
[1740084587904,0.0512,2753.8,2753.7,4.357781]
[1740084588075,0.0512,2753.8,2753.7,5.126181]
[1740084590890,0.7801,2754.6,2753.8,3.63134]
[1740084591202,4.41046,2754.6,2754.0,3.63101]
[1740084591421,3.7801,2754.6,2754.0,3.631]
[1740084591611,3.7801,2754.6,2754.1,3.99398]
[1740084591772,3.7801,2754.6,2754.2,0.265]
[1740084592303,3.7801,2754.6,2754.2,3.8958]
[1740084592479,7.41044,2754.6,2754.2,0.265]
[1740084592684,3.63064,2754.4,2754.1,0.264]
[1740084592883,0.0075,2754.2,2754.1,0.264]
[1740084593087,3.63831,2754.2,2754.1,0.264]
[1740084593406,0.0075,2754.2,2754.1,0.264]
[1740084593783,0.0075,2754.2,2753.9,0.265]
[1740084593973,0.0075,2754.2,2754.0,0.389633]
[1740084594673,3.90616913,2754.9,2754.0,0.389633]
[1740084594674,0.7762,2755.3,2754.1,0.8204]
[1740084594906,0.7762,2755.3,2754.4,0.8204]
[1740084595106,0.7762,2755.3,2754.9,3.62987]
[1740084595337,0.7762,2755.3,2754.7,3.8961]
[1740084595541,4.40557,2755.3,2754.8,3.62989]
[1740084595731,4.40557,2755.3,2754.9,0.752599]
[1740084595931,3.62954,2755.2,2754.9,0.752599]
[1740084596118,4.40557,2755.3,2754.9,0.752599]
[1740084596828,3.62957,2755.2,2754.9,0.752599]
[1740084597339,0.015,2755.2,2754.7,0.266]
[1740084597516,4.40566,2755.3,2754.8,3.62996]
[1740084597720,4.40566,2755.3,2754.7,0.266]
[1740084597721,3.62964,2755.1,2754.7,0.266]
[1740084597921,3.62989,2754.9,2754.7,0.266]
[1740084598128,3.62971,2755.1,2754.7,0.266]
[1740084598329,0.0075,2755.2,2754.7,0.655627]
[1740084598635,3.637,2755.2,2754.7,0.655627]
[1740084598838,3.637,2755.2,2754.7,4.285757]
[1740084599135,3.62979,2755.0,2754.7,0.655627]
[1740084599338,3.62994,2754.9,2754.7,0.655627]
[1740084599524,3.62994,2754.9,2754.7,0.266]
[1740084600048,0.0075,2755.2,2754.7,0.266]
[1740084600252,0.7762,2755.3,2754.8,3.63002]
[1740084600471,1e-05,2755.4,2755.3,3.62936]
[1740084600611,0.8076,2756.5,2755.4,4.43643]
[1740084600612,4.43546,2756.5,2755.4,4.43643]
[1740084600811,0.8076,2756.5,2756.0,3.62833]
[1740084601124,0.8076,2756.5,2756.0,3.62834]
[1740084601342,0.8076,2756.5,2755.8,3.62871]
[1740084601515,0.8076,2756.5,2755.9,0.362871]
[1740084601861,5.3675,2756.8,2756.1,3.62826]
[1740084601862,6.1534,2756.8,2756.1,3.62826]
[1740084602150,0.7934,2756.8,2756.1,3.62824]
[1740084602316,0.7934,2756.8,2755.9,0.7557]
[1740084602317,3.62737,2756.9,2755.9,0.7557]
[1740084602514,3.62758,2756.7,2755.9,4.38423]
[1740084602756,3.62783,2756.5,2755.9,1.721123]
[1740084602940,0.0075,2756.4,2755.7,5.27]
[1740084603155,0.0075,2756.4,2755.7,5.537]
[1740084603156,3.6282,2756.2,2755.7,5.537]
[1740084603374,3.62854,2756.0,2755.7,5.27]
[1740084603655,0.7956,2756.5,2755.7,5.27]
[1740084603829,3.62823,2756.2,2755.6,0.8213]
[1740084604039,3.62849,2756.0,2755.5,0.268]
[1740084604253,4.41645,2755.9,2755.3,4.38122]
[1740084604457,0.7878,2755.9,2755.5,3.62906]
[1740084604755,5.36,2756.0,2755.3,1.0199]
[1740084604919,5.36,2756.0,2755.5,3.62903]
[1740084605121,5.36,2756.0,2755.3,1.0199]
[1740084605352,3.62867,2755.9,2755.3,4.64914]
[1740084605724,7.25735,2755.9,2755.3,4.64914]
[1740084605942,5.36,2756.0,2755.3,1.0199]
[1740084606142,5.36,2756.0,2755.9,3.62857]
[1740084606356,4.39763,2756.6,2755.9,4.42297]
[1740084606537,3.62815,2756.3,2755.9,0.7944]
[1740084606857,3.62815,2756.3,2755.6,0.7944]
[1740084606858,0.0075,2756.2,2755.6,0.7944]
[1740084607060,3.62853,2756.0,2755.7,0.268]
[1740084607220,3.62865,2755.9,2755.4,3.62922]
[1740084607427,3.62873,2755.8,2755.3,1.0624]
[1740084607622,0.015,2756.0,2755.3,1.0624]
[1740084607931,0.61449,2755.9,2755.4,3.62914]
[1740084608136,0.0075,2755.9,2755.4,3.62914]
[1740084608444,0.0075,2756.5,2755.8,3.62863]
[1740084608659,0.8328,2756.5,2756.0,3.62844]
[1740084609166,0.8132,2756.8,2756.0,0.269]
[1740084609321,0.8132,2756.8,2756.2,3.62815]
[1740084609525,0.8132,2756.8,2756.2,0.389715]
[1740084609757,0.0075,2757.1,2756.5,3.62766]
[1740084609961,3.63456,2757.1,2756.5,3.62772]
[1740084610162,3.0,2756.9,2756.3,7.2559]
[1740084610374,3.0,2756.9,2756.4,3.62783]
[1740084610540,0.0075,2757.1,2756.2,3.62811]
[1740084610747,3.62734,2756.9,2756.4,3.62791]
[1740084610947,3.62734,2756.9,2756.4,7.25566]
[1740084611139,3.62734,2756.9,2756.3,3.62794]
[1740084611345,0.38626,2757.1,2756.1,0.7711]
[1740084611346,3.62773,2756.6,2756.1,0.7711]
[1740084611546,7.25548,2756.6,2756.1,0.7711]
[1740084611954,3.62805,2756.3,2756.2,0.268]
[1740084612260,3.62844,2756.1,2755.5,0.784]
[1740084612488,7.03428008,2756.3,2755.6,0.269]
[1740084612642,0.0075,2756.3,2755.6,0.269]
[1740084612846,3.63563,2756.3,2755.6,3.89795]
[1740084613073,0.363563,2756.2,2755.7,3.62879]
[1740084613351,3.0,2756.3,2755.9,7.2571]
[1740084613570,5.130018,2756.6,2755.9,3.62846]
[1740084613778,8.130018,2756.6,2755.9,3.62846]
[1740084613951,3.62785,2756.5,2755.9,3.62846]
[1740084614157,3.0,2756.3,2755.9,3.62846]
[1740084614358,3.62785,2756.5,2756.0,3.62841]
[1740084614559,5.3396268,2756.5,2756.0,3.62841]
[1740084614783,3.0,2756.4,2755.9,3.62848]
[1740084614955,6.62799,2756.4,2755.8,7.25724]
[1740084615157,3.62826,2756.2,2755.6,3.89785]
[1740084615352,6.62794,2756.4,2755.6,0.269]
[1740084615683,0.47544663,2756.4,2755.9,3.6285]
[1740084615986,4.10336663,2756.4,2755.7,3.62874]
[1740084616190,3.62819,2756.2,2755.7,3.62874]
[1740084616361,4.10336663,2756.4,2755.9,3.62855]
[1740084616684,3.0,2756.5,2755.9,3.62855]
[1740084616875,3.62806,2756.3,2755.8,3.62867]
[1740084617581,3.62823,2756.2,2755.7,3.62879]
[1740084617808,0.0075,2756.3,2755.5,0.784]
[1740084618015,3.62848,2756.0,2755.5,0.268]
[1740084618172,3.62848,2756.0,2755.5,3.89698]
[1740084618377,3.62827,2756.2,2755.6,3.62896]
[1740084618589,3.62827,2756.2,2755.5,0.269]
[1740084618590,3.62878,2755.8,2755.5,0.269]
[1740084618985,3.62885,2755.7,2755.5,0.269]
[1740084619198,0.0075,2756.0,2755.5,0.269]
[1740084619407,3.62878,2755.8,2755.5,0.269]
[1740084619589,3.63603,2756.0,2755.5,0.269]
[1740084619590,0.0075,2755.9,2755.5,0.269]
[1740084620209,3.62872,2755.8,2755.5,0.269]
[1740084620984,0.0075,2755.9,2755.5,0.269]
[1740084621185,0.0075,2755.9,2755.5,3.89809]
[1740084621582,3.62845,2756.0,2755.5,8.358263]
[1740084621919,3.62868,2755.9,2755.5,1.100143]
[1740084622114,8.98832,2756.1,2755.5,0.269]
[1740084622283,5.36,2756.1,2755.7,3.62875]
[1740084622615,0.7768,2756.3,2755.7,3.62871]
[1740084622781,0.0075,2756.2,2755.6,3.62897]
[1740084622983,3.62847,2756.0,2755.5,3.8981]
[1740084623314,3.62838,2756.1,2755.5,0.269]
[1740084623615,3.62845,2756.0,2755.5,3.89804]
[1740084623819,3.62868,2755.9,2755.5,0.269]
[1740084624497,4.068898,2756.1,2755.5,0.269]
[1740084624817,0.440518,2756.1,2755.6,3.62886]
[1740084625012,4.40486,2756.3,2755.8,3.62863]
[1740084625194,3.628,2756.4,2755.9,3.62857]
[1740084625405,1.515848,2756.6,2755.8,4.45058]
[1740084625726,3.62807,2756.3,2755.8,4.45058]
[1740084625923,3.62794,2756.4,2755.9,3.62849]
[1740084626091,3.62794,2756.4,2755.8,4.45058]
[1740084626092,3.62825,2756.2,2755.8,0.8219]
[1740084626293,7.25653,2756.2,2755.6,4.4078]
[1740084626528,0.015,2756.4,2755.6,0.7789]
[1740084626709,3.62821,2756.2,2755.6,0.7789]
[1740084626910,3.6284,2756.1,2755.6,4.4078]
[1740084627226,3.6284,2756.1,2755.6,4.40779]
[1740084627929,7.25683,2756.1,2755.6,4.40779]
[1740084628231,3.62828,2756.2,2755.7,0.269]
[1740084628432,3.62844,2756.0,2755.7,0.269]
[1740084628598,4.70671951,2756.2,2755.8,3.62871]
[1740084628599,0.455981,2756.2,2755.8,3.62871]
[1740084628792,0.8298,2756.3,2755.7,1.0907]
[1740084629130,3.62884,2755.7,2755.2,0.8217]
[1740084629328,7.25778,2755.7,2755.2,0.8217]
[1740084629543,7.25778,2755.7,2755.2,4.45117]
[1740084629744,3.62884,2755.7,2755.3,0.269]
[1740084629945,3.62908,2755.6,2754.9,3.62979]
[1740084630114,3.62918,2755.5,2755.0,0.269]
[1740084630316,3.62912,2755.5,2755.0,3.89874]
[1740084630509,3.62908,2755.6,2755.0,3.89875]
[1740084630831,3.62904,2755.6,2755.0,3.89875]
[1740084631007,3.6293,2755.4,2755.0,0.269]
[1740084631332,3.62958,2755.2,2755.0,0.269]
[1740084631834,0.8192,2755.3,2755.0,0.269]
[1740084632015,0.8121,2755.5,2755.1,3.62963]
[1740084632198,4.44106,2755.7,2755.2,3.6294]
[1740084632398,0.8121,2755.7,2755.3,3.62927]
[1740084632604,3.0,2755.8,2755.3,3.62927]
[1740084633155,0.793,2756.0,2755.1,0.8237]
[1740084633356,0.0075,2756.2,2755.6,4.38495]
[1740084633556,0.0075,2756.2,2755.6,0.756]
[1740084633557,3.62845,2756.0,2755.6,0.756]
[1740084633761,3.62845,2756.0,2755.4,8.01433]
[1740084633933,6.62834,2756.1,2755.6,3.62896]
[1740084634133,3.0,2756.1,2755.4,4.38516]
[1740084634358,3.62848,2756.0,2755.4,8.50393836]
[1740084634525,3.0,2756.1,2755.6,3.62896]
[1740084634726,3.62867,2755.9,2755.4,0.756]
[1740084635046,3.6291,2755.5,2755.1,0.8254]
[1740084635358,7.25781,2755.7,2755.1,4.45492]
[1740084635559,3.62898,2755.6,2755.1,0.8254]
[1740084635746,3.62931,2755.4,2755.0,0.269]
[1740084636160,3.62931,2755.4,2754.9,0.7913]
[1740084636161,3.6295,2755.2,2754.9,0.269]
[1740084636370,0.0075,2755.2,2754.9,0.269]
[1740084636582,0.7764,2755.3,2754.9,3.89888]
[1740084636885,0.7764,2755.3,2754.9,0.269]
[1740084637051,0.7764,2755.3,2754.9,3.8988]
[1740084637376,0.7764,2755.3,2754.9,3.89887]
[1740084637578,0.7764,2755.3,2755.0,3.62967]
[1740084637811,0.7764,2755.3,2754.9,4.651748]
[1740084638300,0.0075,2755.4,2755.0,3.62974]
[1740084638648,0.0075,2755.4,2754.9,4.651758]
[1740084639094,3.8091,2755.5,2754.9,1.779878]
[1740084639301,5.36,2755.6,2755.3,3.62935]
[1740084639599,5.36,2755.6,2755.1,3.62961]
[1740084639882,3.0075,2755.6,2755.1,3.62961]
[1740084640092,3.0075,2755.6,2754.9,1.027]
[1740084640296,3.0075,2755.6,2755.2,3.62949]
[1740084641512,6.63648,2755.6,2755.1,3.62962]
[1740084642315,3.0075,2755.6,2754.9,1.027]
[1740084642479,3.0075,2755.6,2755.1,3.62961]